Cogmind - Beta 14 @@@ ROGUE MODE // 2025.01.11 @ 15:44:30 Player: Doobadoop Result: Destroyed by G-50 Soldier with Heavy Laser Performance ------------- Evolutions (2) 1000 Regions Visited (3) 600 Robots Destroyed (33) 165 Value Destroyed (759) 759 Prototype IDs (0) 0 Alien Tech Used (0) 0 Bonus (12) 12 TOTAL SCORE: 2536 Bonus ------- High Alert Combat Kills 12 Cogmind --------- Core Integrity 0/550 Matter 233/300 Energy 100/100 System Corruption 2% Temperature Cool (18) Movement Core (50) Location -8/Materials Parts ------- > --- POWER (2) -------- (None) > --- PROPULSION (4) --- (None) > --- UTILITY (3) ------ Visual Processing Unit Advanced Visual Processing Unit > --- WEAPON (2) ------- Scythe > --- INVENTORY (5) ---- Flight Unit Peak State ------------ > --- POWER ------------ Ion Engine > --- PROPULSION ------- Cesium-ion Thruster Cesium-ion Thruster Cesium-ion Thruster > --- UTILITY ---------- Small Storage Unit Visual Processing Unit Insulated Plating > --- WEAPON ----------- Minigun Minigun > --- INVENTORY -------- Nuclear Core Nuclear Core Minigun Minigun Scythe [Rating: 23] Favorites ----------- Power Ion Engine Engine Ion Engine Power Core Nuclear Core Propulsion Cesium-ion Thruster Treads Armored Treads Leg Aluminum Leg Flight Unit Cesium-ion Thruster Utility Visual Processing Unit Device Cooling System Storage Small Storage Unit Processor Visual Processing Unit Protection Insulated Plating Weapon Minigun Energy Gun EM Pulse Gun Ballistic Gun Minigun Slashing Weapon Scythe Build | -11 -10 -9 -8 ------- Run | Yrd Mat Mat Mat Slots Evolved 4 | . . 2 2 Power 1 | . . . 1 Propulsion 2 | . . 1 1 Utility 1 | . . 1 . Weapon . | . . . . Parts Attached 36 | 5 2 21 8 Power 7 | 1 . 5 1 Engine 5 | 1 . 4 . Core 2 | . . 1 1 Reactor . | . . . . Propulsion 10 | 2 . 5 3 Treads 2 | . . . 2 Leg 2 | 2 . . . Wheel . | . . . . Hover . | . . . . Flight 6 | . . 5 1 Utility 5 | . 2 1 2 Device 1 | . . . 1 Storage 1 | . 1 . . Processor 2 | . 1 . 1 Hackware . | . . . . Protection 1 | . . 1 . Artifact . | . . . . Weapon 14 | 2 . 10 2 Energy Gun 1 | 1 . . . Energy Cannon . | . . . . Ballistic Gun 10 | 1 . 8 1 Ballistic Cannon . | . . . . Launcher . | . . . . Special Weapon . | . . . . Impact Weapon . | . . . . Slashing Weapon 3 | . . 2 1 Piercing Weapon . | . . . . Special Melee Weapon . | . . . . Unidentified Prototypes . | . . . . Parts Lost 12 | . . 5 7 Power 3 | . . 2 1 Propulsion 4 | . . 2 2 Utility 1 | . . . 1 Weapon 4 | . . 1 3 Highest Loss Streak 7 | . . 4 7 To Critical Strikes 1 | . . . 1 Average Slot Usage (%) 81 | . 90 83 62 Engine 9 | . 14 10 3 Treads 1 | . . . 6 Leg 10 | . 28 8 . Flight 15 | . . 20 12 Device 1 | . . . 7 Storage 8 | . 10 9 . Processor 11 | . 8 11 16 Protection 2 | . . 3 . Energy Gun 2 | . 14 . . Ballistic Gun 15 | . 14 17 9 Slashing Weapon 2 | . . 2 4 Peak Build Rating 23 | 5 8 23 23 Average Rating 13 | 3 6 17 16 On Entrance 7 | . 5 8 16 Naked Turns . | . . . . Heaviest Build 19 | 8 13 19 11 Greatest Support 40 | 20 20 20 40 Greatest Overweight (x) 1 | . . . 1 Average Overweight (x) . | . . . . Largest Inventory Capacity 8 | 5 8 8 5 Average Capacity 6 | 5 7 7 5 Most Carried 8 | 3 6 8 5 Average Carried 4 | 1 2 5 2 Final Capacity 8 | 5 8 5 5 Final Carried 4 | 3 3 4 1 Class Distribution -------------------- 57% | Mutant 38% | Sprinter 4% | Scavenger-Sprinter Dominant Class ---------------- Mutant | -10/Materials Sprinter | -9/Materials Mutant | -8/Materials Resources | -11 -10 -9 -8 ----------- Run | Yrd Mat Mat Mat Matter Collected 898 | 197 70 524 107 Remotely . | . . . . Salvage Created 1012 | . 87 606 319 Parts 74 | . 9 48 17 Haulers Intercepted 1 | . . 1 . Recyclers Shooed 1 | . . 1 . Parts Field Recycled . | . . . . Retrieved Matter . | . . . . Parts Self-Destructed . | . . . . Prevented . | . . . . Kills | -11 -10 -9 -8 ------- Run | Yrd Mat Mat Mat Combat Hostiles Destroyed 26 | . 3 17 6 Melee 5 | . . . 5 Guns 20 | . 2 17 1 AOE 1 | . 1 . . Classes Destroyed 8 | . 2 5 1 Worker 1 | . . 1 . Hauler 1 | . . 1 . Watcher 5 | . 2 3 . Swarmer 12 | . 3 9 . Grunt 8 | . . 5 3 Brawler 3 | . . 1 2 Duelist 1 | . . . 1 Sentry 2 | . . 2 . Best Kill Streak 7 | . 3 7 3 Combat Bots Only 7 | . 3 7 3 Max Kills in Single Turn 2 | . 1 2 1 Gunslinging 1 | . . 1 . Exploded 1 | . 1 . . Melee 1 | . . . 1 Uniques/NPCs Destroyed . | . . . . Combat | -11 -10 -9 -8 -------- Run | Yrd Mat Mat Mat Hostile Shots Fired 255 | . 15 119 121 Missed 82 | . 8 42 32 Damage Taken 2466 | . 131 788 1547 Core 756 | . 29 164 563 Absorbed by Shields . | . . . . Core Remaining (%) 82 | 100 88 59 . Volleys Fired 75 | . 9 59 7 Largest 2 | . 2 2 2 Hottest 60 | . 60 50 50 Shots Fired 132 | . 18 102 12 Gun 132 | . 18 102 12 Cannon . | . . . . Launcher . | . . . . Special . | . . . . Kinetic 123 | . 9 102 12 Thermal . | . . . . Explosive . | . . . . Electromagnetic 9 | . 9 . . Robot Hit Streak 8 | . 3 7 8 Robot Miss Streak 5 | . 3 5 2 Penetration Max . | . . . . Secondary Targets 3 | . . 3 . Max Gunslinging Chain 1 | . . 1 . Shots Hit Robots 91 | . 8 66 17 Core Hits 40 | . 5 26 9 Critical Kills . | . . . . Critical Parts Destroyed . | . . . . Critical Strikes 5 | . 1 2 2 Corrupt 1 | . 1 . . Sever 4 | . . 2 2 Melee Attacks 20 | . . 6 14 Impact . | . . . . Slashing 20 | . . 6 14 Piercing . | . . . . Sneak Attacks 2 | . . 2 . Combat Hostiles . | . . . . Follow-up Attacks . | . . . . Damage Inflicted 1935 | . 133 1376 426 Guns 1347 | . 106 1096 145 Cannons . | . . . . Explosions 27 | . 27 . . Melee 561 | . . 280 281 Ramming . | . . . . Kinetic 1258 | . 17 1096 145 Thermal 27 | . 27 . . Explosive . | . . . . Electromagnetic 89 | . 89 . . Impact . | . . . . Slashing 561 | . . 280 281 Piercing . | . . . . Highest Corruption 2 | . 2 . 2 Average Corruption 2 | . 2 . 2 Corruption Purged . | . . . . Corruption Blocked . | . . . . Effects 4 | . 3 . 1 Message Errors 3 | . 2 . 1 Parts Fused 1 | . 1 . . Overload Shots . | . . . . Overflow Damage . | . . . . Projectiles . | . . . . Explosions . | . . . . Melee . | . . . . Knockbacks . | . . . . Impact . | . . . . Kinetic . | . . . . Secondary . | . . . . Self-Inflicted Damage 38 | . 38 . . Shots 1 | . 1 . . Rammed . | . . . . Targets Rammed . | . . . . Kicked . | . . . . Crushed . | . . . . Highest Temperature 76 | . 40 76 1 Average Temperature 23 | . 21 24 1 Received Heat Transfer 1017 | . . 189 828 Siege Activations . | . . . . Robots Corrupted . | . . . . Combat Hostiles . | . . . . Parts Fried . | . . . . Impact Corruptions . | . . . . Robots Melted . | . . . . Combat Hostiles . | . . . . Parts Melted . | . . . . Heat Transferred . | . . . . Parts Sabotaged . | . . . . Parts Stolen . | . . . . Parts Stripped . | . . . . Power Chain Reactions 1 | . 1 . . Alert | -11 -10 -9 -8 ------- Run | Yrd Mat Mat Mat Peak Influence 449 | . 119 449 310 Initial 185 | . . 50 185 Average 186 | . 91 233 236 Maximum Alert Level 2 | . . 2 1 Low Security (%) 52 | 100 100 38 18 Level 1 38 | . . 46 81 Level 2 8 | . . 15 . Level 3 . | . . . . Level 4 . | . . . . Level 5 . | . . . . High Security . | . . . . Max Security . | . . . . Squads Dispatched 2 | . . 1 1 Investigation . | . . . . Extermination . | . . . . Reinforcement 1 | . . 1 . Assault . | . . . . Garrison 1 | . . . 1 Intercept . | . . . . Searches Triggered . | . . . . Construction Impeded . | . . . . Haulers Reinforced . | . . . . Active Scanning Responses . | . . . . Cargo Convoy Interrupts . | . . . . Stealth | -11 -10 -9 -8 --------- Run | Yrd Mat Mat Mat Distress Signals 5 | . . 3 2 Communications Jammed . | . . . . Distress Signals . | . . . . Times Spotted 46 | . 8 27 11 Peak Tracking Total 9 | . 3 7 9 Tactical Retreats 6 | . 1 4 1 Traps | -11 -10 -9 -8 ------- Run | Yrd Mat Mat Mat Traps Triggered . | . . . . Indirectly . | . . . . Trap Hack Attempts . | . . . . Triggered . | . . . . Disarmed . | . . . . Reprogrammed . | . . . . Reused . | . . . . Traps Extracted . | . . . . Installed . | . . . . Triggered . | . . . . Machines | -11 -10 -9 -8 ---------- Run | Yrd Mat Mat Mat Machines Disabled . | . . . . Max in Single Turn . | . . . . Machines Repaired . | . . . . Machines Dismantled . | . . . . Machines Sabotaged . | . . . . Overloaded Fab Kills . | . . . . Hacking | -11 -10 -9 -8 --------- Run | Yrd Mat Mat Mat Machines Accessed 1 | . 1 . . Terminals 1 | . 1 . . Fabricators . | . . . . Repair Stations . | . . . . Recycling Units . | . . . . Scanalyzers . | . . . . Garrison Access . | . . . . Total Hacks 2 | . 2 . . Successful . | . . . . Failed 2 | . 2 . . Catastrophic . | . . . . Database Lockouts . | . . . . Manual . | . . . . Terminals 2 | . 2 . . Fabricators . | . . . . Repair Stations . | . . . . Recycling Units . | . . . . Scanalyzers . | . . . . Garrison Access . | . . . . Terminal Hacks . | . . . . Fabricator Hacks . | . . . . Repair Station Hacks . | . . . . Recycling Unit Hacks . | . . . . Scanalyzer . | . . . . Garrison Access Hacks . | . . . . Unauthorized Hacks . | . . . . Terminals . | . . . . Fabricators . | . . . . Repair Stations . | . . . . Recycling Units . | . . . . Scanalyzers . | . . . . Garrison Access . | . . . . Data Cores Recovered . | . . . . Used . | . . . . Hacking Detections 1 | . 1 . . Full Trace Events . | . . . . Feedback Events . | . . . . Feedback Blocked . | . . . . Robot Schematics Acquired . | . . . . Robots Built . | . . . . Authchips . | . . . . Time . | . . . . Total Robot Build Rating . | . . . . Part Schematics Acquired . | . . . . Parts Built . | . . . . Authchips . | . . . . Time . | . . . . Total Part Build Rating . | . . . . Parts Repaired . | . . . . Time . | . . . . Parts Recycled . | . . . . Recycled Matter . | . . . . Retrieved Matter . | . . . . Retrieved Components . | . . . . Parts Scanalyzed . | . . . . Part Schematics Acquired . | . . . . Parts Damaged . | . . . . Bothacking | -11 -10 -9 -8 ------------ Run | Yrd Mat Mat Mat Used RIF Installer . | . . . . Robots Hacked . | . . . . Non-combat . | . . . . Combat . | . . . . Robot Hacks Applied . | . . . . Relay Couplers Released . | . . . . Fabnet Peak Effective % . | . . . . Robots Rewired . | . . . . Allies Hacked . | . . . . Hacks Repelled . | . . . . Allies | -11 -10 -9 -8 -------- Run | Yrd Mat Mat Mat Total Allies . | . . . . Largest Group . | . . . . Highest-Rated Group . | . . . . Highest-Rated Ally . | . . . . Total Orders . | . . . . Ally Attacks . | . . . . Total Damage . | . . . . Kills . | . . . . Allies Corrupted . | . . . . Allies Melted . | . . . . Intel | -11 -10 -9 -8 ------- Run | Yrd Mat Mat Mat Robot Analysis Total . | . . . . Derelict Logs Recovered . | . . . . Drone Launches . | . . . . Drone Recoveries . | . . . . Exploration | -11 -10 -9 -8 ------------- Run | Yrd Mat Mat Mat Turns Passed 869 | 72 173 491 133 Spaces Moved 978 | 55 113 660 150 Core 7 | 5 . . 2 Treads 9 | . . . 9 Legs 249 | 50 113 86 . Wheels . | . . . . Hover . | . . . . Flight 713 | . . 574 139 Fastest Speed 28 | 50 120 29 28 Average Speed 53 | 113 120 41 37 Slowest Speed 170 | 120 120 120 170 Overloaded Moves . | . . . . Propulsion Burnouts . | . . . . Robots Hopped 4 | . . 4 . Cave-ins Triggered . | . . . . Exploration Rate (%) 22 | 4 20 49 18 Regions Visited 3 Branch Regions . Pre-discovered Areas . | . . . . Known Exits Taken . | . . . . Unknown Exits Taken 3 | 1 1 1 . Scrap Searched . | . . . . Spaces Dug . | . . . . Terrain Destroyed 4 | . 4 . . Melee . | . . . . Projectile . | . . . . AOE 4 | . 4 . . Terrain Rammed . | . . . . Walls Destroyed . | . . . . Machines Disabled . | . . . . Actions | -11 -10 -9 -8 --------- Run | Yrd Mat Mat Mat Total 1184 | 62 135 790 197 Wait 27 | . 3 12 12 Move 967 | 54 112 651 150 Hop 4 | . . 4 . Pick Up 27 | 3 5 17 2 Fast Attach 13 | 5 1 4 3 Attach 17 | . 1 11 5 Detach 5 | . . 5 . Swap 6 | . . 6 . Drop 23 | . 4 15 4 Fire 75 | . 9 59 7 Melee 20 | . . 6 14 Ram . | . . . . Kick . | . . . . Crush . | . . . . Escape Stasis . | . . . . Rewire . | . . . . Trap . | . . . . Miscellaneous . | . . . . Route ------- -11/Scrapyard -10/Materials -9/Materials -8/Materials History --------- Turn | Location | Event 18 | -11/Scrapyard | Discovered new exit (range 16) 73 | -11/Scrapyard | Entered Materials 234 | -10/Materials | Discovered new exit (range 10) 246 | -10/Materials | Entered another Materials area 246 | -9/Materials | Evolved 2 slots: Propulsion x1, Utility x1 307 | -9/Materials | Build established: Mutant 715 | -9/Materials | Lost 4 parts (1p2n1w) 728 | -9/Materials | Destroyed 7 combat bots 731 | -9/Materials | Discovered new exit (range 16) 735 | -9/Materials | Build established: Sprinter 737 | -9/Materials | Entered another Materials area 737 | -8/Materials | Evolved 2 slots: Power x1, Propulsion x1 800 | -8/Materials | Garrison activated, responded to threat 845 | -8/Materials | Core integrity fell below 50% 855 | -8/Materials | Core integrity fell below 20% 870 | -8/Materials | Destroyed by G-50 Soldier with Heavy Laser Last Messages --------------- 00843_ Lgt. Nuclear Core severed. 00844_ XQ%ZM&E3NMREGAJTLOVXA3SU>,M OI 00844_ L-31 Rogue Imp. Aluminum Leg severed. 00845_ K-01 Serf collects debris. 00846_ L-31 Rogue destroyed. 00849_ B-36 Bruiser destroyed. 00849_ K-01 Serf collects debris. 00852_ Critical hit (Burn: +37). 00852_ G-47 Trooper destroyed. 00852_ K-01 Serf collects debris. 00857_ U-05 Engineer works on Electrolysis Chamber. 00859_ K-01 Serf collects debris. 00860_ Cooling System destroyed. 00862_ U-05 Engineer works on Electrolysis Chamber. 00862_ K-01 Serf collects debris. 00868_ U-05 Engineer works on Electrolysis Chamber. 00868_ K-01 Serf collects debris. Map ----- +----------------------------------------------------+ | ???????????????????????" """ """ ##### | | ?????????????????????? !! # | | ??????????????????? ? ! + " | | ??????????????????? ??????"" """ # " | | ??????????????????? """????" """ ##### ## " | | ??????????????????# """????? """ #???# ## | | ??????????????????# ????? #???# #### | | ??????????????????# ??? #???# #??? | | ??????????????????# ? #####+#### | | ??????????????????# ? ## # | | ??????????????????# #?############# ## # | | ??????????????????# #?????????????# ## # | | ??????######??????# #?????????????# ## # | | ??????# ###+### #?????????????# ## # | | ??????# #????????????## ## # | | ??????# #????????????# ###+##### | | ??????# #????????????# | | ??????# #????????????+ T | | ??????# < #????????????# | | ??????# u<< #????????????# ######### | | ??????# k !!! #????????????## ##???????? | | ???#### !! #?????????????# #????????? | | !!= !! #?????????????# #????????? | | !!= !############### #????????? | | !! ===*===%= #????????? | | ? %%k%@=! #????????? | | ? *!!=gg #????????? | | ?? ###########################????????? | | ?? ???????????????????????????????????? | | ??""" ????????????????????????????????????? | | ???G ?????????????????????????????????????? | | ???"" ??????????????????????????????????????? | | ???? ???????????????????????????????????????? | | ???? ????????????????????????????????????????? | | ????####?????????????????????????????????????????? | | ?????????????????????????????????????????????????? | | ?????????????????????????????????????????????????? | | ?????????????????????????????????????????????????? | | ?????????????????????????????????????????????????? | | ?????????????????????????????????????????????????? | | ?????????????????????????????????????????????????? | | ?????????????????????????????????????????????????? | | ?????????????????????????????????????????????????? | | ?????????????????????????????????????????????????? | | ?????????????????????????????????????????????????? | | ?????????????????????????????????????????????????? | | ?????????????????????????????????????????????????? | | ?????????????????????????????????????????????????? | | ?????????????????????????????????????????????????? | | ?????????????????????????????????????????????????? | +----------------------------------------------------+ Best States ------------- Heat Dissipation 53 Energy Generation 14 Energy Capacity 265 Matter Stores 289 Matter Capacity 300 Sight Range 20 Terrain Scan Density 10 Armor Coverage 150 Resistance: EM 15 Evasion (%) 64 Recoil Reduction 2 Item Schematics ----------------- None Robot Schematics ------------------ None Fabricated ------------ Nothing Alien Tech Used ----------------- None Achievements -------------- None Challenges ------------ None Game ------ Seed SuperchargedIonicLegs Manual? 0 Play Time 00:17:51 Cumulative 6.2 hours Start 2025.01.11 @ 15:25:05 End 2025.01.11 @ 15:44:30 Sessions 1 Manual Loads 0 Difficulty Rogue Special Mode None Game No. 8 Rogue 6 Adventurer 2 Explorer 0 Win Type - Total 0 Types 0/0/0/0/0/0/0/0/0 Lore% 5 Gallery% 12 Achievement% 12 Wizard Run 0 Options --------- Layout 1 ASCII 0 Keyboard 0 Movement Arrows Keybinds 0 Fullscreen 1 Font 32/SmallcapsGlow Map View 50x35 Zoom Use 0% Tactical HUD 1 Map Filters NONE Filters NONE Steam 1 RUN: 25d0f39d-1b3b-4cea-87d8-bb2dbe378c8b